bitfinex/quotes_SOLUSD_20251006
["timestamp","ask_amount","ask_price","bid_price","bid_amount"]
[1759719417788,4.30607587,232.23,232.2,0.68]
[1759719418788,4.30570505,232.25,232.21,0.68]
[1759719419105,4.30570505,232.25,232.15,91.47647521]
[1759719419106,4.30570505,232.25,232.22,31.12]
[1759719419398,4.30570505,232.25,232.22,31.8]
[1759719419582,15.06996769,232.25,232.22,31.8]
[1759719419984,15.06996769,232.25,232.22,31.12]
[1759719420196,4.30570505,232.25,232.23,0.68]
[1759719420376,4.3054805,232.27,232.24,0.68]
[1759719420580,4.3054805,232.27,232.25,31.12]
[1759719422187,4.3054805,232.27,232.25,31.8]
[1759719423403,4.3054805,232.27,232.25,31.12]
[1759719427020,0.72,232.26,232.2,0.68]
[1759719427197,0.72,232.26,232.21,31.1]
[1759719427696,15.06996769,232.25,232.21,31.1]
[1759719428300,15.06996769,232.25,232.21,31.78]
[1759719429212,10.76426264,232.25,232.21,31.78]
[1759719429513,10.76426264,232.25,232.22,0.68]
[1759719429710,10.76426264,232.25,232.21,31.1]
[1759719429899,10.76426264,232.25,232.22,0.68]
[1759719430307,10.76426264,232.25,232.22,81.28]
[1759719431022,10.76426264,232.25,232.23,0.68]
[1759719431235,10.76426264,232.25,232.24,0.68]
[1759719431735,4.3053343,232.27,232.24,31.78]
[1759719432030,4.3053343,232.27,232.25,0.68]
[1759719432233,4.3053343,232.27,232.24,31.1]
[1759719432234,4.3053343,232.27,232.26,0.68]
[1759719434336,15.06867007,232.27,232.24,31.1]
[1759719435037,15.78867007,232.27,232.24,31.1]
[1759719435632,15.06867007,232.27,232.24,31.1]
[1759719436052,15.06867007,232.27,232.24,7.16861604]
[1759719436234,15.06867007,232.27,232.13,80.6]
[1759719436235,1.34609298,232.25,232.17,0.68]
[1759719436437,1.34609298,232.22,232.15,0.68]
[1759719436812,2.06609298,232.22,232.15,31.76]
[1759719437438,1.34609298,232.22,232.15,31.76]
[1759719437629,1.34609298,232.2,232.15,31.08]
[1759719437829,0.65,232.19,232.15,31.08]
[1759719438014,15.07386192,232.19,232.15,31.08]
[1759719438621,15.72386192,232.19,232.13,0.72]
[1759719438817,15.07386192,232.19,232.14,0.72]
[1759719440122,10.76704423,232.19,232.14,0.72]
[1759719440322,11.41704423,232.19,232.14,0.72]
[1759719440520,10.76704423,232.19,232.11,10.44613755]
[1759719440735,1.34609298,232.17,232.11,10.44613755]
[1759719440922,1.99609298,232.17,232.11,10.44613755]
[1759719441635,0.65,232.16,232.11,10.44613755]
[1759719441833,15.07645917,232.15,232.11,10.44613755]
[1759719442031,15.07645917,232.15,232.11,11.16613755]
[1759719442752,15.07645917,232.15,232.11,10.44613755]
[1759719443047,15.72645917,232.15,232.11,10.44613755]
[1759719443757,15.07645917,232.15,232.11,11.16613755]
[1759719444614,10.76889941,232.15,232.11,10.44613755]
[1759719444933,11.41889941,232.15,232.11,10.44613755]
[1759719445128,10.76889941,232.15,232.11,11.16613755]
[1759719447219,10.76889941,232.15,232.12,0.72]
[1759719447720,10.76889941,232.15,232.13,0.72]
[1759719448333,10.76889941,232.15,232.11,91.04613755]
[1759719448641,21.52759838,232.26,232.15,10.87647521]
[1759719448856,21.52759838,232.26,232.16,31.78]
[1759719449030,21.52759838,232.26,232.17,0.72]
[1759719449440,36.59691724,232.26,232.17,0.72]
[1759719450537,15.06931886,232.26,232.17,0.72]
[1759719450846,15.06931886,232.26,232.19,20.8]
[1759719451030,15.06931886,232.26,232.2,0.72]
[1759719451239,15.06931886,232.26,232.21,31.06]
[1759719451437,10.76379919,232.26,232.22,0.72]
[1759719453256,0.71,232.25,232.21,31.06]
[1759719453556,15.07061659,232.24,232.21,31.06]
[1759719453930,15.07061659,232.24,232.19,21.48]
[1759719453931,2.05609298,232.23,232.17,31.06]
[1759719454144,1.34609298,232.21,232.11,11.12613755]
[1759719454349,2.05609298,232.2,232.11,42.18613755]
[1759719454556,36.60006888,232.24,232.11,42.18613755]
[1759719454557,2.05609298,232.19,232.11,42.18613755]
[1759719455057,2.05609298,232.18,232.11,41.50613755]
[1759719455453,15.07516043,232.17,232.11,41.50613755]
[1759719456364,15.07516043,232.17,232.12,0.68]
[1759719456550,15.07516043,232.17,232.13,0.68]
[1759719456746,15.07516043,232.17,232.11,41.50613755]
[1759719457061,15.78516043,232.17,232.11,41.50613755]
[1759719458532,15.07516043,232.17,232.11,42.18613755]
[1759719459468,15.07516043,232.17,232.11,41.50613755]
[1759719459649,15.07516043,232.17,232.12,0.68]
[1759719460044,52.56992537,232.24,232.13,10.87647521]
[1759719460045,4.30607587,232.23,232.13,10.87647521]
[1759719460343,10.76582418,232.22,232.14,0.68]
[1759719460548,10.76582418,232.22,232.15,31.04]
[1759719460767,10.76582418,232.22,232.15,31.72]
[1759719461465,10.76582418,232.22,232.16,0.68]
[1759719463363,10.76582418,232.22,232.15,31.04]
[1759719463364,11.47582418,232.22,232.15,31.04]
[1759719463567,0.71,232.21,232.14,21.48]
[1759719463747,0.71,232.21,232.14,31.72]
[1759719464468,15.07321274,232.2,232.14,31.72]
[1759719465860,15.07321274,232.2,232.14,0.68]
[1759719466367,15.07321274,232.2,232.15,10.87647521]
[1759719466553,15.07321274,232.2,232.16,0.68]
[1759719466755,15.07321274,232.2,232.17,0.68]
[1759719467265,15.07321274,232.2,232.13,10.87647521]
[1759719467482,15.07321274,232.2,232.18,0.68]
[1759719467771,15.07126555,232.23,232.18,0.68]
[1759719468268,15.76126555,232.23,232.13,31.67647521]
[1759719468472,15.76126555,232.23,232.16,0.66]
[1759719468767,15.76126555,232.23,232.13,31.67647521]
[1759719468768,15.76126555,232.23,232.14,0.66]
[1759719470974,39.39486423,232.23,232.14,0.66]
[1759719471280,2.10321932,232.22,232.14,0.66]
[1759719471448,0.69,232.21,232.14,0.66]
[1759719472169,0.69,232.21,232.14,81.26]
[1759719473086,15.07321274,232.2,232.15,0.66]
[1759719474567,10.76658053,232.2,232.16,0.66]
[1759719474768,10.76658053,232.2,232.17,0.66]
[1759719477766,10.76658053,232.2,232.14,80.6]
[1759719477965,10.76658053,232.2,232.18,0.66]
[1759719478351,10.76658053,232.2,232.14,80.6]
[1759719478554,10.76658053,232.2,232.15,0.66]
[1759719479575,10.76658053,232.2,232.16,0.66]
[1759719479870,10.76658053,232.2,232.17,0.66]
[1759719481765,4.9953343,232.27,232.18,0.66]
[1759719481971,4.9953343,232.27,232.18,81.26]
[1759719482168,4.9953343,232.27,232.19,0.66]
[1759719483160,15.75867007,232.27,232.19,0.66]
[1759719485666,37.28534161,232.27,232.18,80.6]
[1759719485875,0.69,232.26,232.18,80.6]
[1759719486071,36.59534161,232.27,232.18,80.6]
[1759719486276,15.07061659,232.24,232.18,80.6]
[1759719486469,0.69,232.23,232.18,80.6]
[1759719487188,0.69,232.23,232.18,81.26]
[1759719488584,15.07191455,232.22,232.18,81.26]
[1759719488895,0.69,232.21,232.14,20.8]
[1759719489072,0.69,232.2,232.14,20.8]
[1759719490467,15.07386192,232.19,232.14,20.8]
[1759719490675,15.07386192,232.19,232.14,21.46]
[1759719490987,15.07386192,232.19,232.14,0.66]
[1759719491567,15.07386192,232.19,232.15,0.66]
[1759719491886,36.59594451,232.27,232.16,62.65647521]
[1759719492073,36.59594451,232.27,232.18,10.87647521]
[1759719492401,36.59594451,232.27,232.19,31.64]
[1759719492684,36.59594451,232.27,232.2,0.66]
[1759719493175,15.06867007,232.27,232.2,0.66]
[1759719494673,0.69,232.26,232.19,30.98]
[1759719495374,0.69,232.26,232.18,0.66]
[1759719495575,0.69,232.26,232.19,30.96]
[1759719495899,0.69,232.26,232.19,31.62]
[1759719496471,15.06996769,232.25,232.19,31.62]
[1759719498988,15.06996769,232.25,232.2,0.72]
[1759719499288,2.10321932,232.23,232.17,21.52]
[1759719499489,2.10321932,232.21,232.14,0.72]
[1759719499790,0.71,232.2,232.14,31.68]
[1759719500597,15.07386192,232.19,232.14,31.68]
[1759719501007,15.78386192,232.19,232.14,31.68]
[1759719502496,0.71,232.18,232.12,52.48]
[1759719502694,15.07516043,232.17,232.12,51.76]
[1759719502999,15.07516043,232.17,232.14,0.72]
[1759719504680,4.30718869,232.17,232.15,0.72]
[1759719504888,4.30718869,232.17,232.16,0.72]
[1759719505215,15.07516043,232.17,232.14,0.72]
[1759719505408,15.07516043,232.17,232.15,0.72]
[1759719506112,15.07516043,232.17,232.16,0.72]
[1759719506809,15.07321274,232.2,232.14,0.72]
[1759719507184,15.07321274,232.2,232.12,52.48]
[1759719507406,15.78321274,232.2,232.12,52.48]
[1759719507601,15.78321274,232.2,232.13,0.72]
[1759719507989,15.07321274,232.2,232.14,10.87647521]
[1759719508211,4.30663221,232.2,232.16,10.87647521]
[1759719508516,4.30663221,232.2,232.17,31.66]
[1759719508815,10.76529832,232.23,232.18,0.72]
[1759719508995,10.76529832,232.23,232.19,0.72]
[1759719509188,10.76529832,232.23,232.2,0.72]
[1759719509396,11.47529832,232.23,232.17,31.66]
[1759719510492,2.81321932,232.22,232.13,0.72]
[1759719510684,2.10321932,232.21,232.14,20.8]
[1759719511011,15.07256362,232.21,232.14,20.8]
[1759719511585,15.78256362,232.21,232.14,20.8]
[1759719511898,15.78256362,232.21,232.15,0.72]
[1759719512595,39.41801669,232.21,232.12,0.72]
[1759719512799,2.10321932,232.2,232.13,30.94]
[1759719513101,15.07451114,232.18,232.13,30.94]
[1759719513302,15.78451114,232.18,232.13,30.94]
[1759719513601,15.78451114,232.18,232.13,31.6]
[1759719515792,15.78451114,232.18,232.13,29.1]
[1759719516708,15.78451114,232.18,232.13,28.1]
[1759719516906,10.76750796,232.18,232.13,27.44]
[1759719517089,10.76750796,232.18,232.14,0.66]
[1759719517409,10.76750796,232.18,232.15,0.66]
[1759719517803,10.76750796,232.18,232.13,27.44]
[1759719518001,10.76750796,232.18,232.14,0.66]
[1759719518508,10.76750796,232.18,232.15,0.66]
[1759719518812,10.76750796,232.18,232.16,0.66]
[1759719518992,10.76750796,232.18,232.17,0.66]
[1759719519594,10.76750796,232.18,232.15,0.66]
[1759719519912,10.76750796,232.18,232.16,0.66]
[1759719520502,15.07191455,232.22,232.16,0.66]
[1759719520703,15.78191455,232.22,232.16,0.66]
[1759719521003,15.78191455,232.22,232.13,27.44]
[1759719521188,0.71,232.21,232.13,27.44]
[1759719521393,0.71,232.21,232.14,0.66]
[1759719521595,15.07321274,232.2,232.14,0.66]
[1759719523199,11.47658053,232.2,232.13,27.44]
[1759719523415,11.47658053,232.2,232.13,28.1]
[1759719523838,4.30644675,232.21,232.14,0.66]
[1759719524132,4.3053343,232.27,232.17,20.8]
[1759719524434,4.3053343,232.27,232.18,31.58]
[1759719524727,4.3053343,232.27,232.19,0.66]
[1759719525211,10.76403473,232.26,232.19,0.66]
[1759719526134,11.47403473,232.26,232.19,0.66]
[1759719527228,15.7795544,232.26,232.19,0.66]
[1759719529621,15.7795544,232.26,232.12,4.30795371]
[1759719529622,2.10321932,232.23,232.13,0.66]
[1759719529937,2.10321932,232.21,232.14,20.8]
[1759719530118,0.66,232.21,232.14,20.8]
[1759719530321,0.66,232.2,232.14,20.8]
[1759719530631,0.66,232.19,232.14,20.8]
[1759719530827,0.66,232.18,232.14,20.8]
[1759719531405,4.30718869,232.17,232.13,30.9]
[1759719531635,4.30718869,232.17,232.13,31.56]
[1759719532010,4.30718869,232.17,232.14,0.66]
[1759719532632,15.07321274,232.2,232.14,0.66]
[1759719532818,15.73321274,232.2,232.14,0.66]
[1759719535527,15.73321274,232.2,232.13,30.9]
[1759719535727,15.07321274,232.2,232.13,30.9]
[1759719535913,0.66,232.19,232.13,30.9]
[1759719536449,0.66,232.18,232.13,30.9]
[1759719536804,0.66,232.17,232.13,30.9]
[1759719537448,15.07580978,232.16,232.13,30.9]
[1759719537734,15.07580978,232.16,232.13,111.5]
[1759719538620,10.76843556,232.16,232.13,111.5]
[1759719539409,10.76843556,232.16,232.13,112.16]
[1759719539611,10.76843556,232.16,232.13,111.5]
[1759719540020,10.76843556,232.16,232.13,112.16]
[1759719540308,10.76843556,232.16,232.13,111.5]
[1759719540514,10.76843556,232.16,232.13,112.16]
[1759719541046,10.76843556,232.16,232.13,111.5]
[1759719542014,10.76843556,232.16,232.13,81.26]
[1759719542215,10.76843556,232.16,232.13,80.6]
[1759719543315,10.76843556,232.16,232.13,81.26]
[1759719544034,10.76843556,232.16,232.13,80.6]
[1759719544626,10.76843556,232.16,232.13,81.26]
[1759719544826,10.76843556,232.16,232.11,41.8596302]
[1759719545025,10.76843556,232.16,232.12,0.66]
[1759719545238,10.76843556,232.16,232.11,41.1996302]
[1759719545431,10.76843556,232.16,232.11,41.8596302]
[1759719545629,10.76843556,232.16,232.12,0.66]
[1759719546013,10.76843556,232.16,232.11,41.1996302]
[1759719546217,10.76843556,232.16,232.11,41.8596302]
[1759719546624,10.76843556,232.16,232.11,41.1996302]
[1759719546820,15.07580978,232.16,232.12,0.66]
[1759719547135,4.30737422,232.16,232.13,0.66]
[1759719547343,4.30737422,232.16,232.14,30.86]
[1759719547539,4.30737422,232.16,232.15,0.66]
[1759719547730,4.3070523,232.18,232.15,0.66]
[1759719548917,15.07191455,232.22,232.16,0.66]
[1759719550736,0.66,232.21,232.14,30.86]
[1759719550936,15.07321274,232.2,232.15,0.66]
[1759719551320,15.07321274,232.2,232.16,0.66]
[1759719552224,10.76658053,232.2,232.16,81.26]
[1759719553644,0.66,232.19,232.16,80.6]
[1759719554139,15.07321274,232.2,232.16,80.6]
[1759719554338,15.73321274,232.2,232.16,80.6]
[1759719555843,4.30700318,232.18,232.16,80.6]
[1759719556935,15.07386192,232.19,232.16,80.6]
[1759719557348,15.73386192,232.19,232.16,80.6]
[1759719557842,10.76704423,232.19,232.16,80.6]
[1759719558047,0.66,232.18,232.13,111.44]
[1759719558223,0.66,232.18,232.13,112.1]
[1759719558425,0.66,232.18,232.13,111.44]
[1759719558625,12.11336082,232.19,232.13,111.44]
[1759719558832,0.66,232.18,232.13,111.44]
[1759719559034,10.76704423,232.19,232.14,0.66]
[1759719559334,11.42704423,232.19,232.14,0.66]
[1759719559836,0.66,232.18,232.14,0.66]
[1759719560229,15.07516043,232.17,232.14,0.66]
[1759719560550,15.07516043,232.17,232.14,81.26]
[1759719562036,21.53316106,232.2,232.14,80.6]
[1759719562240,22.19316106,232.2,232.14,81.26]
[1759719562442,23.53947765,232.2,232.14,81.26]
[1759719563744,23.53947765,232.2,232.14,80.6]
[1759719563745,0.66,232.19,232.14,80.6]
[1759719564056,37.95269039,232.2,232.15,0.66]
[1759719564438,38.61269039,232.2,232.15,0.66]
[1759719564750,37.95269039,232.2,232.14,80.6]
[1759719565059,0.66,232.19,232.14,80.6]
[1759719565241,15.73451114,232.18,232.14,80.6]
[1759719565752,15.07451114,232.18,232.14,80.6]
[1759719565934,15.07451114,232.18,232.14,81.26]
[1759719566569,10.76750796,232.18,232.14,81.26]
[1759719566939,11.42750796,232.18,232.14,80.6]
[1759719567341,10.76750796,232.18,232.14,81.26]
[1759719567564,10.76750796,232.18,232.15,0.66]
[1759719568164,10.76750796,232.18,232.16,0.66]
[1759719569163,21.53316106,232.2,232.16,0.66]
[1759719570667,21.53316106,232.2,232.17,0.66]
[1759719570854,21.53316106,232.2,232.18,0.66]
[1759719571168,21.53316106,232.2,232.16,0.66]
[1759719571340,21.53316106,232.2,232.17,0.66]
[1759719572544,21.53316106,232.2,232.14,30.82]
[1759719572545,21.53316106,232.2,232.15,0.66]
[1759719572860,22.19316106,232.2,232.15,0.66]
[1759719573369,0.66,232.19,232.15,0.66]
[1759719573759,21.53316106,232.2,232.15,0.66]
[1759719573960,23.53947765,232.2,232.14,30.82]
[1759719574168,23.53947765,232.2,232.11,10.3196302]
[1759719574169,1.34631659,232.18,232.11,10.3196302]
[1759719574352,0.66,232.17,232.11,41.1196302]
[1759719574857,15.07580978,232.16,232.11,41.7796302]
[1759719575044,15.07580978,232.16,232.12,0.66]
[1759719575245,16.42212637,232.16,232.11,41.1196302]
[1759719575469,0.66,232.15,232.11,10.3196302]
[1759719575666,2.00631659,232.15,232.11,10.3196302]
[1759719575855,0.66,232.15,232.11,10.3196302]
[1759719576358,16.42212637,232.16,232.11,10.3196302]
[1759719576562,0.66,232.15,232.11,10.3196302]
[1759719577079,15.07710863,232.14,232.11,10.3196302]
[1759719577778,15.07710863,232.14,232.12,0.66]
[1759719579354,10.76936331,232.14,232.12,0.66]
[1759719579969,10.76936331,232.14,232.11,10.3196302]
[1759719580380,10.76936331,232.14,232.11,10.9796302]
[1759719582291,10.76936331,232.14,232.06,23.80723101]
[1759719582292,11.42936331,232.14,232.08,0.66]
[1759719582497,10.76936331,232.14,232.09,0.66]
[1759719582679,10.76936331,232.14,232.1,0.66]
[1759719583176,10.76936331,232.14,232.11,0.66]
[1759719583383,10.76936331,232.14,232.07,30.8]
[1759719583588,10.76936331,232.14,232.11,0.66]
[1759719584272,10.76936331,232.14,232.07,30.8]
[1759719584486,11.42936331,232.14,232.08,0.66]
[1759719585374,10.76936331,232.14,232.08,0.66]
[1759719587390,4.30755976,232.15,232.09,10.87647521]
[1759719587686,4.30755976,232.15,232.1,0.66]
[1759719587887,4.30755976,232.15,232.11,30.78]
[1759719588097,15.07321274,232.2,232.12,0.66]
[1759719588674,15.07321274,232.2,232.13,10.87647521]
[1759719588877,15.07321274,232.2,232.14,0.66]
[1759719589084,15.07321274,232.2,232.15,30.78]
[1759719589290,15.07321274,232.2,232.16,0.66]
[1759719590291,10.76549434,232.23,232.16,0.66]
[1759719591462,10.76549434,232.23,232.16,13.58518472]
[1759719591668,10.76549434,232.23,232.17,0.66]
[1759719591886,10.76549434,232.23,232.18,10.87647521]
[1759719592096,10.76549434,232.23,232.19,31.44]
[1759719592275,21.52803096,232.26,232.2,0.66]
[1759719593791,0.68,232.25,232.19,30.78]
[1759719594200,22.20803096,232.26,232.2,0.66]
[1759719594496,37.27734982,232.26,232.2,0.66]
[1759719596488,0.1,232.28,232.2,15.73307188]
[1759719596714,10.85654805,232.42,232.29,20.8]
[1759719597008,10.85654805,232.42,232.27,10.87647521]
[1759719597009,4.40261206,232.42,232.35,10.87647521]
[1759719597208,4.40261206,232.42,232.37,10.87647521]
[1759719597209,0.1,232.42,232.37,10.87647521]
[1759719597519,0.1,232.42,232.39,10.87647521]
[1759719597676,0.1,232.42,232.41,10.87647521]
[1759719598084,0.1,232.42,232.41,11.53647521]
[1759719598270,0.1,232.42,232.41,0.66]
[1759719598474,0.1,232.42,232.37,0.66]
[1759719598691,4.98274084,232.41,232.34,20.8]
[1759719598903,4.98274084,232.41,232.34,30.76]
[1759719598904,0.68,232.4,232.34,30.76]
[1759719599074,0.68,232.4,232.33,30.74]
[1759719599277,2.78254999,232.39,232.33,35.72274084]
[1759719599809,0.68,232.38,232.33,35.72274084]
[1759719599993,0.68,232.37,232.33,4.98274084]
[1759719600304,0.68,232.36,232.33,4.98274084]
[1759719600474,4.30385194,232.35,232.33,5.64274084]
[1759719600672,0.68,232.34,232.27,11.53647521]
[1759719600901,0.68,232.34,232.28,30.74]
[1759719601101,0.68,232.34,232.29,10.75921393]
[1759719601305,2.10254999,232.34,232.26,2.24638351]
[1759719601507,0.68,232.33,232.27,30.74]
[1759719601811,2.78254999,232.32,232.26,32.98638351]
[1759719602002,15.0634818,232.35,232.27,0.66]
[1759719602309,36.58274153,232.35,232.27,0.66]
[1759719602811,2.10254999,232.33,232.24,11.53647521]
[1759719602998,0.68,232.33,232.25,30.74]
[1759719603191,0.68,232.33,232.25,44.32073131]
[1759719603707,0.68,232.34,232.26,0.66]
[1759719603909,2.10254999,232.33,232.25,43.66073131]
[1759719604115,2.78254999,232.34,232.25,44.32073131]
[1759719604496,38.69001554,232.32,232.26,30.74]
[1759719604686,2.10254999,232.29,232.2,0.66]
[1759719604893,2.78254999,232.28,232.21,20.8]
[1759719605086,0.68,232.31,232.22,0.66]
[1759719605501,36.58746555,232.32,232.22,13.58240098]
[1759719605722,36.58746555,232.32,232.23,0.66]
[1759719606207,0.68,232.31,232.22,12.92240098]
[1759719606410,0.68,232.3,232.21,21.46]
[1759719606587,15.06737267,232.29,232.21,34.38240098]
[1759719606991,0.68,232.28,232.21,34.38240098]
[1759719607187,0.68,232.28,232.22,30.72]
[1759719607823,15.06737267,232.29,232.22,31.38]
[1759719607991,4.30496362,232.29,232.23,11.53647521]
[1759719608310,4.30496362,232.29,232.24,0.66]
[1759719608516,4.30496362,232.29,232.25,0.66]
[1759719608688,4.30496362,232.29,232.22,30.72]
[1759719608689,15.06737267,232.29,232.26,0.66]
[1759719608890,15.06737267,232.29,232.27,0.66]
[1759719609320,4.30496362,232.29,232.27,0.66]
[1759719609506,4.30496362,232.29,232.28,0.66]
[1759719609699,4.30496362,232.29,232.26,0.66]
[1759719609901,4.30496362,232.29,232.24,12.92128782]
[1759719610113,4.30496362,232.29,232.27,0.66]
[1759719610495,4.30496362,232.29,232.25,0.66]
[1759719610695,10.76194575,232.3,232.26,0.66]
[1759719611091,10.76194575,232.3,232.25,20.8]
[1759719611399,10.76194575,232.3,232.26,0.66]
[1759719611603,10.76194575,232.3,232.03,21.73852772]
[1759719611604,2.10254999,232.27,232.03,21.73852772]
[1759719611818,2.10254999,232.27,232.09,2.90694184]
[1759719611819,20.8,232.23,232.09,2.90694184]
[1759719612033,2.10254999,232.19,232.1,0.66]
[1759719612202,0.68,232.18,232.08,0.66]
[1759719612396,2.10254999,232.17,232.09,24.44]
[1759719612613,0.68,232.18,232.09,24.44]
[1759719612614,4.30737422,232.16,232.1,0.66]
[1759719612998,4.30737422,232.16,232.11,10.87647521]
[1759719613211,4.30737422,232.16,232.12,0.66]
[1759719613521,4.30737422,232.16,232.11,31.67647521]
[1759719613697,4.30737422,232.16,232.13,0.66]
[1759719614024,4.30737422,232.16,232.14,31.38]
[1759719614221,4.30715871,232.18,232.15,0.66]
[1759719614699,10.76585467,232.22,232.14,30.72]
[1759719614700,23.69215322,232.22,232.16,0.66]
[1759719614906,12.92629855,232.22,232.18,20.8]
[1759719615121,12.92629855,232.22,232.19,31.38]
[1759719615503,4.30607587,232.23,232.19,31.38]
[1759719615826,15.07126555,232.23,232.19,31.38]
[1759719616010,15.07126555,232.23,232.19,30.72]
[1759719616213,2.78254999,232.22,232.18,30.72]
[1759719616411,0.68,232.21,232.18,30.72]
[1759719616619,15.07126555,232.23,232.19,0.66]
[1759719616825,15.07126555,232.23,232.2,0.66]
[1759719617026,15.07126555,232.23,232.21,0.66]
[1759719617403,4.30607587,232.23,232.22,0.66]
[1759719617804,12.92407108,232.27,232.22,0.66]
[1759719617805,12.92407108,232.27,232.23,10.87647521]
[1759719618007,21.51417793,232.41,232.23,10.87647521]
[1759719618008,2.80254999,232.37,232.26,20.8]
[1759719618326,12.92017485,232.34,232.26,21.45]
[1759719618641,4.30422244,232.33,232.27,21.45]
[1759719618817,4.30422244,232.33,232.28,11.52647521]
[1759719619020,15.06477854,232.33,232.29,31.37]
[1759719619525,15.06477854,232.33,232.27,20.8]
[1759719619709,15.06477854,232.33,232.28,30.72]
[1759719620306,15.06477854,232.33,232.29,0.65]
[1759719620508,4.30422244,232.33,232.3,10.87647521]
[1759719620721,15.06088901,232.39,232.31,0.65]
[1759719621823,0.7,232.38,232.31,0.65]
[1759719622030,0.7,232.38,232.32,30.72]
[1759719622527,36.57644475,232.39,232.32,31.37]
[1759719622918,36.57644475,232.39,232.32,30.72]
[1759719623122,15.06088901,232.39,232.33,0.65]
[1759719623631,15.76088901,232.39,232.32,30.72]
[1759719624242,15.06088901,232.39,232.33,0.65]
[1759719624747,15.06088901,232.39,232.34,30.72]
[1759719624917,15.76088901,232.39,232.34,30.72]
[1759719625113,15.06088901,232.39,232.34,30.72]
[1759719625334,15.06088901,232.39,232.34,31.37]
[1759719626146,15.06088901,232.39,232.35,0.65]
[1759719626358,15.06088901,232.39,232.36,0.65]
[1759719627257,10.75777787,232.39,232.36,0.65]
[1759719627760,0.7,232.38,232.31,0.65]
[1759719627958,0.7,232.38,232.32,30.72]
[1759719628854,10.75777787,232.39,232.32,30.72]
[1759719629035,10.75777787,232.39,232.33,0.65]
[1759719629358,10.75777787,232.39,232.35,20.8]
[1759719629650,4.30274084,232.41,232.36,0.65]
[1759719629862,4.30274084,232.41,232.35,20.8]
[1759719629863,4.30274084,232.41,232.37,31.37]
[1759719630068,15.05959295,232.41,232.37,31.37]
[1759719630655,15.05959295,232.41,232.29,4.30495973]
[1759719630656,20.8,232.35,232.12,0.65]
[1759719630860,29.89975066,232.38,232.12,0.65]
[1759719630861,4.94987533,232.22,232.12,0.65]
[1759719631153,0.7,232.28,232.12,21.45]
[1759719631376,0.7,232.28,232.1,1.9]
[1759719631377,15.06867007,232.27,232.13,21.45]
[1759719631583,41.54521694,232.27,232.14,0.65]
[1759719631786,5.64987533,232.26,232.18,20.8]
[1759719632089,0.7,232.25,232.18,20.8]
[1759719632873,15.06867007,232.27,232.2,10.87647521]
[1759719633076,15.06867007,232.27,232.21,0.65]
[1759719634355,15.06867007,232.27,232.22,41.95647521]
[1759719634565,4.3053343,232.27,232.23,0.71]
[1759719634796,4.3053343,232.27,232.24,0.71]
[1759719634969,4.3053343,232.27,232.25,0.71]
[1759719635789,10.76208487,232.3,232.22,62.75647521]
[1759719636188,0.71,232.29,232.22,20.8]
[1759719636373,0.71,232.29,232.23,31.08]
[1759719639781,15.06802134,232.28,232.23,31.08]
[1759719640299,15.77802134,232.28,232.23,31.08]
[1759719640793,15.06802134,232.28,232.23,31.79]
[1759719641173,15.77802134,232.28,232.23,31.08]
[1759719641691,15.06802134,232.28,232.23,31.79]
[1759719642704,20.8,232.34,232.23,31.08]
[1759719642874,5.65987533,232.33,232.24,0.71]
[1759719644875,15.06542699,232.32,232.24,0.71]
[1759719645606,15.77542699,232.32,232.24,0.71]
[1759719646108,37.29746555,232.32,232.24,0.71]
[1759719646901,36.58746555,232.32,232.24,0.71]